fUST/lending_fUST_20250611
["ID","MTS","AMOUNT","RATE_DAILY","PERIOD"]
[365352477,1749616238638,-444.30203634,0.00021095,4]
[365352479,1749616238647,-430.0,0.00021095,4]
[365352481,1749616238656,-275.00975943,0.00021095,4]
[365352483,1749616238666,-430.0,0.00021095,4]
[365352485,1749616238675,-430.0,0.00021095,4]
[365352487,1749616238684,-430.0,0.00021095,4]
[365352489,1749616238693,-438.70831734,0.00021095,4]
[365352491,1749616238703,-430.0,0.00021095,4]
[365352493,1749616238712,-430.0,0.00021095,4]
[365352495,1749616238721,-430.0,0.00021095,4]
[365352497,1749616238730,-436.01369669,0.00021095,4]
[365352499,1749616238739,-473.63753092,0.00021095,4]
[365352501,1749616238748,-436.95411518,0.00021095,4]
[365352503,1749616238758,-436.98902445,0.00021095,4]
[365352505,1749616238767,-436.10138319,0.00021095,4]
[365352507,1749616238776,-430.0,0.00021095,4]
[365352509,1749616238785,-430.0,0.00021095,4]
[365352511,1749616238795,-430.0,0.00021095,4]
[365352514,1749616238812,-430.0,0.00021095,4]
[365352516,1749616238824,-440.16378127,0.00021095,4]
[365352518,1749616238833,-430.0,0.00021095,4]
[365352520,1749616238843,-500.0,0.00021095,4]
[365352522,1749616238852,-437.13191541,0.00021095,4]
[365352524,1749616238862,-430.0,0.00021095,4]
[365352526,1749616238871,-430.0,0.00021095,4]
[365352528,1749616238880,-430.0,0.00021095,4]
[365352530,1749616238890,-430.0,0.00021095,4]
[365352532,1749616238900,-442.2848589,0.00021095,4]
[365352534,1749616238909,-430.0,0.00021095,4]
[365352536,1749616238919,-436.10618459,0.00021095,4]
[365352538,1749616238928,-292.47471781,0.00021095,4]
[365352540,1749616238938,-460.0,0.00021095,4]
[365352542,1749616238948,-460.0,0.00021095,4]
[365352544,1749616238958,-908.46,0.00021095,4]
[365352546,1749616238968,-799.55,0.00021095,4]
[365352549,1749616238977,-460.0,0.00021095,4]
[365352551,1749616238987,-430.0,0.00021095,4]
[365352553,1749616238996,-333.33572822,0.00021095,4]
[365352555,1749616239006,-460.0,0.00021095,4]
[365352557,1749616239016,-460.0,0.00021095,4]
[365352559,1749616239025,-725.66,0.00021095,4]
[365352560,1749616239035,-460.0,0.00021095,4]
[365352562,1749616239045,-1970.93,0.00021095,4]
[365352564,1749616239055,-460.0,0.00021095,4]
[365352566,1749616239065,-735.29,0.00021095,4]
[365352568,1749616239075,-169.11229336,0.00021095,4]
[365352570,1749616239084,-858.24,0.00021095,4]
[365352572,1749616239094,-460.0,0.00021095,2]
[365352574,1749616239104,-185.76972603,0.00021095,4]
[365352576,1749616239114,-227.14501272,0.00021095,4]
[365352578,1749616239123,-460.0,0.00021095,4]
[365352580,1749616239133,-460.0,0.00021095,4]
[365352582,1749616239142,-440.0,0.00021095,4]
[365352584,1749616239152,-1474.4,0.00021095,4]
[365352586,1749616239161,-460.0,0.00021095,4]
[365352588,1749616239170,-2285.07,0.00021095,4]
[365352590,1749616239180,-430.0,0.00021095,4]
[365352592,1749616239190,-460.0,0.00021095,4]
[365352594,1749616239199,-571.35,0.00021095,4]
[365352596,1749616239209,-460.0,0.00021095,4]
[365352598,1749616239218,-2083.99,0.00021095,4]
[365352601,1749616239228,-1126.58,0.00021095,4]
[365352603,1749616239238,-460.0,0.00021095,4]
[365352605,1749616239247,-605.71,0.00021095,4]
[365352607,1749616239257,-460.0,0.00021095,4]
[365352608,1749616239266,-460.0,0.00021095,4]
[365352611,1749616239275,-460.0,0.00021095,4]
[365352612,1749616239285,-460.0,0.00021095,4]
[365352614,1749616239295,-460.0,0.00021095,4]
[365352616,1749616239305,-1698.14,0.00021095,4]
[365352617,1749616239315,-460.0,0.00021095,4]
[365352618,1749616239324,-460.0,0.00021095,4]
[365352619,1749616239335,-1039.49,0.00021095,4]
[365352620,1749616239344,-2538.15,0.00021095,4]
[365352621,1749616239354,-1237.68,0.00021095,4]
[365352622,1749616239364,-460.0,0.00021095,4]
[365352623,1749616239374,-460.0,0.00021095,4]
[365352624,1749616239386,-460.0,0.00021095,4]
[365352625,1749616239399,-917.54,0.00021095,4]
[365352626,1749616239408,-460.0,0.00021095,4]
[365352627,1749616239418,-437.94082265,0.00021095,4]
[365352628,1749616239427,-460.0,0.00021095,4]
[365352630,1749616239437,-448.48755791,0.00021095,4]
[365352631,1749616239447,-433.28200542,0.00021095,4]
[365352632,1749616239456,-221.35212491,0.00021095,4]
[365352633,1749616239467,-460.0,0.00021095,4]
[365352634,1749616239476,-460.0,0.00021095,4]
[365352635,1749616239486,-460.0,0.00021095,4]
[365352638,1749616239495,-460.0,0.00021095,4]
[365352640,1749616239505,-350.0,0.00021095,4]
[365352642,1749616239514,-460.0,0.00021095,4]
[365352659,1749616239659,-560.0,0.00021095,4]
[365352661,1749616239670,-8008.36350173,0.00021176,4]
[365352663,1749616239679,-320.0221087,0.00021369,4]
[365352665,1749616239689,-420.0,0.00021369,4]
[365352667,1749616239698,-460.0,0.00021369,4]
[365352669,1749616239707,-908.46,0.00021369,4]
[365352671,1749616239717,-799.55,0.00021369,4]
[365352673,1749616239726,-460.0,0.00021369,4]
[365352675,1749616239736,-460.0,0.00021369,4]
[365352677,1749616239745,-460.0,0.00021369,4]
[365352679,1749616239754,-725.66,0.00021369,4]
[365352681,1749616239763,-460.0,0.00021369,4]
[365352683,1749616239772,-1970.93,0.00021369,4]
[365352685,1749616239781,-460.0,0.00021369,4]
[365352687,1749616239791,-735.29,0.00021369,4]
[365352689,1749616239800,-858.24,0.00021369,4]
[365352691,1749616239810,-442.49,0.00021369,2]
[365352693,1749616239819,-460.0,0.00021369,4]
[365352695,1749616239832,-460.0,0.00021369,4]
[365352698,1749616239841,-1474.4,0.00021369,4]
[365352700,1749616239850,-460.0,0.00021369,4]
[365352702,1749616239860,-2285.07,0.00021369,4]
[365352704,1749616239869,-460.0,0.00021369,4]
[365352706,1749616239878,-571.35,0.00021369,4]
[365352708,1749616239887,-460.0,0.00021369,4]
[365352710,1749616239896,-2083.99,0.00021369,4]
[365352712,1749616239905,-1126.58,0.00021369,4]
[365352714,1749616239915,-460.0,0.00021369,4]
[365352716,1749616239925,-605.71,0.00021369,4]
[365352718,1749616239934,-460.0,0.00021369,4]
[365352720,1749616239943,-460.0,0.00021369,4]
[365352722,1749616239952,-460.0,0.00021369,4]
[365352724,1749616239962,-460.0,0.00021369,4]
[365352726,1749616239971,-1698.14,0.00021369,4]
[365352728,1749616239981,-460.0,0.00021369,4]
[365352730,1749616239991,-1039.49,0.00021369,4]
[365352732,1749616240000,-2538.15,0.00021369,4]
[365352734,1749616240010,-1237.68,0.00021369,4]
[365352736,1749616240020,-460.0,0.00021369,4]
[365352738,1749616240029,-917.54,0.00021369,4]
[365352740,1749616240038,-460.0,0.00021369,4]
[365352742,1749616240049,-353.31274331,0.00021369,4]
[365352744,1749616240059,-460.0,0.00021369,4]
[365352746,1749616240068,-460.0,0.00021369,4]
[365352748,1749616240077,-420.0,0.0002138,2]
[365352751,1749616240087,-8008.36350173,0.00021383,5]
[365352752,1749616240096,-587.0,0.00021428,2]
[365352755,1749616240105,-789.43,0.00021472,2]
[365352756,1749616240115,-190.26046724,0.00021521,2]
[365352758,1749616240124,-349.4814938,0.00021544,2]
[365352761,1749616240133,-8008.36350173,0.0002159,5]
[365352763,1749616240143,-307.54,0.00021632,3]
[365352765,1749616240151,-461.35,0.00021632,3]
[365352767,1749616240161,-442.68032576,0.00021642,4]
[365352768,1749616240170,-451.98657689,0.00021642,4]
[365352770,1749616240179,-430.0,0.00021642,4]
[365352772,1749616240188,-441.73447325,0.00021642,4]
[365352774,1749616240197,-430.0,0.00021642,4]
[365352775,1749616240206,-430.0,0.00021642,4]
[365352776,1749616240215,-436.61533083,0.00021642,4]
[365352778,1749616240224,-430.0,0.00021642,4]
[365352779,1749616240233,-430.0,0.00021642,4]
[365352780,1749616240242,-521.23722991,0.00021642,4]
[365352781,1749616240252,-473.11208452,0.00021642,4]
[365352782,1749616240261,-443.61368992,0.00021642,4]
[365352783,1749616240271,-441.95636161,0.00021642,4]
[365352784,1749616240280,-449.80827875,0.00021642,4]
[365352785,1749616240289,-298.2784253,0.00021642,4]
[365352786,1749616240299,-443.08937843,0.00021642,4]
[365352787,1749616240308,-430.0,0.00021642,4]
[365352788,1749616240318,-471.68886244,0.00021642,4]
[365352789,1749616240328,-442.12365908,0.00021642,4]
[365352791,1749616240337,-446.05953334,0.00021642,4]
[365352793,1749616240346,-214.26937852,0.00021642,4]
[365352795,1749616240356,-402.63028104,0.00021642,4]
[365352797,1749616240366,-430.0,0.00021642,4]
[365352799,1749616240375,-423.40622762,0.00021642,4]
[365352801,1749616240384,-529.95622086,0.00021642,4]
[365352803,1749616240398,-303.48287227,0.00021642,4]
[365352805,1749616240407,-417.29878195,0.00021642,4]
[365352806,1749616240417,-438.75664657,0.00021642,4]
[365352807,1749616240426,-430.0,0.00021642,4]
[365352808,1749616240436,-437.7812393,0.00021642,4]
[365352809,1749616240445,-448.99801403,0.00021642,4]
[365352810,1749616240455,-436.35941484,0.00021642,4]
[365352811,1749616240464,-430.0,0.00021642,4]
[365352812,1749616240475,-430.0,0.00021642,4]
[365352813,1749616240484,-430.0,0.00021642,4]
[365352814,1749616240494,-506.32837495,0.00021642,4]
[365352815,1749616240503,-430.0,0.00021642,4]
[365352816,1749616240512,-268.23077591,0.00021642,4]
[365352817,1749616240521,-430.0,0.00021642,4]
[365352818,1749616240530,-497.71961472,0.00021642,4]
[365352819,1749616240540,-430.0,0.00021642,4]
[365352820,1749616240550,-440.0,0.00021642,4]
[365352821,1749616240560,-430.0,0.00021642,4]
[365352822,1749616240569,-440.0,0.00021642,4]
[365352824,1749616240579,-434.22449369,0.00021642,4]
[365352825,1749616240588,-440.0,0.00021642,4]
[365352827,1749616240598,-441.18271004,0.00021642,4]
[365352829,1749616240607,-440.0,0.00021642,4]
[365352831,1749616240617,-439.0382,0.00021642,4]
[365352833,1749616240626,-430.0,0.00021642,4]
[365352835,1749616240635,-431.55075061,0.00021642,4]
[365352837,1749616240645,-431.74045999,0.00021642,4]
[365352839,1749616240654,-437.6898299,0.00021642,4]
[365352841,1749616240663,-444.65624438,0.00021642,4]
[365352843,1749616240673,-440.0,0.00021642,4]
[365352845,1749616240682,-430.0,0.00021642,4]
[365352847,1749616240691,-440.0,0.00021642,4]
[365352849,1749616240700,-516.04109533,0.00021642,4]
[365352851,1749616240709,-434.49710221,0.00021642,4]
[365352853,1749616240718,-432.13181176,0.00021642,4]
[365352855,1749616240727,-430.0,0.00021642,4]
[365352858,1749616240739,-433.38650133,0.00021642,4]
[365352859,1749616240748,-440.0,0.00021642,4]
[365352861,1749616240758,-168.48868773,0.00021642,4]
[365352863,1749616240767,-440.0,0.00021642,4]
[365352865,1749616240776,-440.0,0.00021642,4]
[365352867,1749616240785,-440.0,0.00021642,4]
[365352869,1749616240795,-432.69179407,0.00021642,4]
[365352871,1749616240804,-432.98990524,0.00021642,4]
[365352873,1749616240813,-432.07287624,0.00021642,4]
[365352875,1749616240822,-440.0,0.00021642,4]
[365352877,1749616240831,-440.0,0.00021642,4]
[365352879,1749616240841,-404.76739793,0.00021642,4]
[365352881,1749616240850,-430.0,0.00021642,4]
[365352883,1749616240860,-440.0,0.00021642,4]
[365352885,1749616240869,-460.0,0.00021642,4]
[365352887,1749616240879,-460.0,0.00021642,4]
[365352889,1749616240888,-410.0,0.00021642,4]
[365352891,1749616240897,-454.47820683,0.00021642,4]
[365352893,1749616240907,-460.0,0.00021643,4]
[365352895,1749616240916,-908.46,0.00021643,4]
[365352897,1749616240926,-799.55,0.00021643,4]
[365352899,1749616240935,-384.46883553,0.00021643,4]
[365352901,1749616240944,-460.0,0.00021643,4]
[365352903,1749616240954,-460.0,0.00021643,4]
[365352905,1749616240963,-725.66,0.00021643,4]
[365352907,1749616240973,-460.0,0.00021643,4]
[365352909,1749616240982,-1970.93,0.00021643,4]
[365352911,1749616240991,-735.29,0.00021643,4]
[365352913,1749616241000,-858.24,0.00021643,4]
[365352915,1749616241009,-460.0,0.00021643,4]
[365352917,1749616241018,-460.0,0.00021643,4]
[365352919,1749616241028,-1474.4,0.00021643,4]
[365352921,1749616241037,-460.0,0.00021643,4]
[365352923,1749616241046,-2285.07,0.00021643,4]
[365352925,1749616241055,-440.0,0.00021643,4]
[365352927,1749616241064,-571.35,0.00021643,4]
[365352929,1749616241073,-460.0,0.00021643,4]
[365352931,1749616241083,-2083.99,0.00021643,4]
[365352933,1749616241092,-1126.58,0.00021643,4]
[365352935,1749616241101,-460.0,0.00021643,4]
[365352937,1749616241110,-605.71,0.00021643,4]
[365352939,1749616241119,-460.0,0.00021643,4]
[365352941,1749616241129,-460.0,0.00021643,4]
[365352943,1749616241138,-420.0,0.00021643,4]
[365352945,1749616241147,-1698.14,0.00021643,4]
[365352948,1749616241157,-460.0,0.00021643,4]
[365352950,1749616241167,-1039.49,0.00021643,4]
[365352952,1749616241176,-2538.15,0.00021643,4]
[365352954,1749616241185,-1237.68,0.00021643,4]
[365352956,1749616241195,-460.0,0.00021643,4]
[365352958,1749616241203,-917.54,0.00021643,4]
[365352959,1749616241213,-237.34272,0.00021643,4]
[365352961,1749616241222,-460.0,0.00021643,4]
[365352963,1749616241233,-460.0,0.00021643,4]
[365352966,1749616241242,-250.8300115,0.00021693,2]
[365352968,1749616241252,-16239.38042583,0.00021765,2]
[365352969,1749616241261,-8008.36350173,0.00021797,6]
[365352971,1749616241270,-151.29930826,0.000219,2]
[365352973,1749616241279,-153.77,0.00021906,3]
[365352975,1749616241289,-460.0,0.00021916,4]
[365352977,1749616241298,-460.0,0.00021916,4]
[365352979,1749616241307,-460.0,0.00021917,4]
[365352981,1749616241317,-908.46,0.00021917,4]
[365352983,1749616241328,-799.55,0.00021917,4]
[365352985,1749616241337,-460.0,0.00021917,4]
[365352987,1749616241346,-460.0,0.00021917,4]
[365352989,1749616241356,-725.66,0.00021917,4]
[365352991,1749616241365,-460.0,0.00021917,4]
[365352993,1749616241375,-1970.93,0.00021917,4]
[365352995,1749616241384,-735.29,0.00021917,4]
[365352997,1749616241396,-858.24,0.00021917,4]
[365352999,1749616241406,-460.0,0.00021917,4]
[365353002,1749616241416,-460.0,0.00021917,4]
[365353003,1749616241425,-1474.4,0.00021917,4]
[365353006,1749616241436,-440.0,0.00021917,4]
[365353007,1749616241446,-2285.07,0.00021917,4]
[365353009,1749616241454,-571.35,0.00021917,4]
[365353011,1749616241463,-420.0,0.00021917,4]
[365353013,1749616241475,-2083.99,0.00021917,4]
[365353015,1749616241485,-1126.58,0.00021917,4]
[365353017,1749616241494,-460.0,0.00021917,4]
[365353019,1749616241503,-605.71,0.00021917,4]
[365353021,1749616241513,-185.15341139,0.00021917,4]
[365353024,1749616241522,-460.0,0.00021917,4]
[365353026,1749616241532,-1698.14,0.00021917,4]
[365353027,1749616241541,-310.0,0.00021917,4]
[365353029,1749616241551,-1039.49,0.00021917,4]
[365353031,1749616241561,-2538.15,0.00021917,4]
[365353033,1749616241570,-1237.68,0.00021917,4]
[365353036,1749616241580,-460.0,0.00021917,4]
[365353037,1749616241589,-917.54,0.00021917,4]
[365353039,1749616241598,-585.54,0.00021917,4]
[365353041,1749616241607,-460.0,0.00021917,4]
[365353043,1749616241616,-160.0,0.00022,7]
[365353045,1749616241626,-1647.65,0.00022,7]
[365353047,1749616241635,-49670.23,0.00022,7]
[365353049,1749616241645,-197.0,0.00022,2]
[365353051,1749616241654,-8008.36350173,0.00022003,6]
[365353053,1749616241663,-190.26046724,0.00022078,2]
[365353055,1749616241672,-500.0,0.0002216,2]
[365353058,1749616241682,-460.0,0.0002219,4]
[365353059,1749616241691,-152.4342792,0.0002219,4]
[365353061,1749616241700,-460.0,0.00022191,4]
[365353063,1749616241711,-908.46,0.00022191,4]
[365353066,1749616241722,-799.55,0.00022191,4]
[365353067,1749616241731,-460.0,0.00022191,4]
[365353069,1749616241741,-453.53617834,0.00022191,4]
[365353071,1749616241751,-725.66,0.00022191,4]
[365353073,1749616241760,-460.0,0.00022191,4]
[365353075,1749616241771,-1970.93,0.00022191,4]
[365353077,1749616241781,-735.29,0.00022191,4]
[365353078,1749616241792,-858.24,0.00022191,4]
[365353079,1749616241801,-460.0,0.00022191,4]
[365353080,1749616241811,-460.0,0.00022191,4]
[365353081,1749616241820,-1474.4,0.00022191,4]
[365353082,1749616241830,-2285.07,0.00022191,4]
[365353083,1749616241839,-571.35,0.00022191,4]
[365353084,1749616241849,-2083.99,0.00022191,4]
[365353085,1749616241858,-1126.58,0.00022191,4]
[365353086,1749616241867,-460.0,0.00022191,4]
[365353087,1749616241877,-605.71,0.00022191,4]
[365353088,1749616241886,-460.0,0.00022191,4]
[365353089,1749616241896,-1698.14,0.00022191,4]
[365353090,1749616241905,-1039.49,0.00022191,4]
[365353091,1749616241914,-2538.15,0.00022191,4]
[365353092,1749616241923,-1237.68,0.00022191,4]
[365353093,1749616241932,-460.0,0.00022191,4]
[365353094,1749616241942,-917.54,0.00022191,4]
[365353095,1749616241951,-460.0,0.00022191,4]
[365353096,1749616241960,-8008.36350173,0.0002221,6]
[365353097,1749616241969,-160.0,0.00022297,2]
[365353098,1749616241978,-1052.57,0.00022406,2]
[365353099,1749616241987,-8008.36350173,0.00022417,7]
[365353100,1749616241996,-475.0,0.00022464,4]
[365353101,1749616242006,-460.0,0.00022465,4]
[365353102,1749616242015,-908.46,0.00022465,4]
[365353103,1749616242025,-799.55,0.00022465,4]
[365353104,1749616242034,-460.0,0.00022465,4]
[365353105,1749616242134,-725.66,0.00022465,4]
[365353106,1749616242144,-460.0,0.00022465,4]
[365353107,1749616242154,-1970.93,0.00022465,4]
[365353108,1749616242163,-735.29,0.00022465,4]
[365353109,1749616242172,-858.24,0.00022465,4]
[365353110,1749616242182,-460.0,0.00022465,4]
[365353111,1749616242191,-460.0,0.00022465,4]
[365353112,1749616242201,-1474.4,0.00022465,4]
[365353113,1749616242210,-2285.07,0.00022465,4]
[365353114,1749616242220,-571.35,0.00022465,4]
[365353115,1749616242229,-2083.99,0.00022465,4]
[365353116,1749616242239,-1126.58,0.00022465,4]
[365353117,1749616242248,-460.0,0.00022465,4]
[365353118,1749616242257,-605.71,0.00022465,4]
[365353119,1749616242267,-460.0,0.00022465,4]
[365353120,1749616242276,-1698.14,0.00022465,4]
[365353121,1749616242285,-1039.49,0.00022465,4]
[365353122,1749616242295,-2538.15,0.00022465,4]
[365353123,1749616242304,-1237.68,0.00022465,4]
[365353124,1749616242314,-460.0,0.00022465,4]
[365353125,1749616242323,-917.54,0.00022465,4]
[365353126,1749616242333,-460.0,0.00022465,4]
[365353127,1749616242342,-8008.36350173,0.00022624,7]
[365353128,1749616242351,-160.0,0.00022624,2]
[365353129,1749616242361,-190.26046724,0.00022635,2]
[365353130,1749616242370,-195.32328761,0.00022638,2]
[365353131,1749616242379,-213.16534259,0.00022638,2]
[365353132,1749616242392,-160.0,0.00022638,2]
[365353133,1749616242401,-229.71724145,0.00022638,2]
[365353134,1749616242411,-160.0,0.00022638,2]
[365353135,1749616242421,-424.19973472,0.00022638,2]
[365353136,1749616242431,-835.03886221,0.00022638,2]
[365353137,1749616242441,-151.29930826,0.00022728,2]
[365353139,1749616242450,-460.0,0.00022739,4]
[365353140,1749616242461,-908.46,0.00022739,4]
[365353141,1749616242473,-799.55,0.00022739,4]
[365353143,1749616242482,-460.0,0.00022739,4]
[365353145,1749616242492,-725.66,0.00022739,4]
[365353147,1749616242501,-460.0,0.00022739,4]
[365353152,1749616242510,-1970.93,0.00022739,4]
[365353155,1749616242530,-735.29,0.00022739,4]
[365353157,1749616242540,-858.24,0.00022739,4]
[365353159,1749616242550,-460.0,0.00022739,4]
[365353161,1749616242560,-460.0,0.00022739,4]
[365353163,1749616242570,-1474.4,0.00022739,4]
[365353165,1749616242579,-2285.07,0.00022739,4]
[365353167,1749616242589,-571.35,0.00022739,4]
[365353169,1749616242599,-2083.99,0.00022739,4]
[365353171,1749616242609,-1126.58,0.00022739,4]
[365353173,1749616242620,-460.0,0.00022739,4]
[365353175,1749616242630,-605.71,0.00022739,4]
[365353177,1749616242640,-460.0,0.00022739,4]
[365353179,1749616242650,-1698.14,0.00022739,4]
[365353182,1749616242660,-1039.49,0.00022739,4]
[365353183,1749616242671,-2538.15,0.00022739,4]
[365353186,1749616242681,-1237.68,0.00022739,4]
[365353188,1749616242691,-460.0,0.00022739,4]
[365353190,1749616242700,-917.54,0.00022739,4]
[365353192,1749616242710,-466.2,0.00022739,4]
[365353194,1749616242720,-5000.0,0.00022803,2]
[365353196,1749616242731,-151.0,0.00022803,2]
[365353198,1749616242740,-151.0,0.00022803,2]
[365353200,1749616242750,-151.0,0.00022803,2]
[365353202,1749616242760,-151.0,0.00022803,2]
[365353204,1749616242769,-151.0,0.00022803,2]
[365353206,1749616242778,-151.0,0.00022803,2]
[365353208,1749616242788,-151.0,0.00022803,2]
[365353209,1749616242798,-151.0,0.00022803,2]
[365353211,1749616242809,-151.0,0.00022803,2]
[365353213,1749616242818,-151.0,0.00022803,2]
[365353215,1749616242828,-151.0,0.00022803,2]
[365353217,1749616242837,-151.0,0.00022803,2]
[365353219,1749616242847,-151.0,0.00022803,2]
[365353221,1749616242857,-170.69580346,0.00022803,2]
[365353223,1749616242867,-207.4,0.00022803,2]
[365353225,1749616242877,-500.0,0.0002283,2]
[365353227,1749616242887,-500.0,0.0002283,2]
[365353229,1749616242896,-500.0,0.0002283,2]
[365353231,1749616242906,-500.0,0.0002283,2]
[365353233,1749616242915,-500.0,0.0002283,2]
[365353235,1749616242924,-500.0,0.0002283,2]
[365353237,1749616242934,-500.0,0.0002283,2]
[365353239,1749616242943,-500.0,0.0002283,2]
[365353241,1749616242952,-500.0,0.0002283,2]
[365353244,1749616242963,-500.0,0.0002283,2]
[365353246,1749616242973,-500.0,0.0002283,2]
[365353250,1749616242983,-500.0,0.0002283,2]
[365353253,1749616242993,-500.0,0.0002283,2]
[365353255,1749616243002,-500.0,0.0002283,2]
[365353257,1749616243012,-500.0,0.0002283,2]
[365353259,1749616243022,-500.0,0.0002283,2]
[365353261,1749616243031,-500.0,0.0002283,2]
[365353263,1749616243041,-500.0,0.0002283,2]
[365353265,1749616243051,-500.0,0.0002283,2]
[365353267,1749616243062,-500.0,0.0002283,2]
[365353269,1749616243071,-500.0,0.0002283,2]
[365353271,1749616243082,-282.50966877,0.0002283,2]
[365353272,1749616243091,-500.0,0.0002283,2]
[365353273,1749616243101,-207.53635189,0.0002283,2]
[365353274,1749616243111,-500.0,0.0002283,2]
[365353275,1749616243120,-500.0,0.0002283,2]
[365353276,1749616243130,-500.0,0.0002283,2]
[365353277,1749616243139,-499.7,0.0002283,2]
[365353278,1749616243149,-500.0,0.0002283,2]
[365353279,1749616243158,-500.0,0.0002283,2]
[365353280,1749616243167,-500.0,0.0002283,2]
[365353281,1749616243177,-500.0,0.0002283,2]
[365353282,1749616243186,-500.0,0.0002283,2]
[365353283,1749616243196,-500.0,0.0002283,2]
[365353284,1749616243205,-500.0,0.0002283,2]
[365353285,1749616243214,-500.0,0.0002283,2]
[365353286,1749616243228,-500.0,0.0002283,2]
[365353287,1749616243237,-500.0,0.0002283,2]
[365353288,1749616243247,-8008.36350173,0.00022831,8]
[365353289,1749616243257,-500.0,0.00022973,2]
[365353291,1749616243266,-567.2069987,0.00022973,2]
[365353292,1749616243276,-502.39152022,0.00022973,2]
[365353294,1749616243285,-600.0,0.00022973,2]
[365353296,1749616243296,-500.53643659,0.00022973,2]
[365353298,1749616243305,-503.96951609,0.00022973,2]
[365353299,1749616243315,-501.56200485,0.00022973,2]
[365353300,1749616243325,-501.60046574,0.00022973,2]
[365353301,1749616243335,-506.16225976,0.00022973,2]
[365353302,1749616243345,-500.0,0.00022973,2]
[365353303,1749616243355,-67369.56474976,0.00023,2]
[365353304,1749616243365,-624.3157757,0.00023,2]
[365353305,1749616243375,-40260.56482803,0.00023,2]
[365353306,1749616243385,-10043.38789823,0.00023,2]
[365353307,1749616243399,-181167.89203179,0.00023,20]
[365353308,1749616243409,-1328.71905864,0.00023,2]
[365353309,1749616243419,-12971.49030353,0.00023,2]
[365353310,1749616243428,-615.08,0.00023002,3]
[365353311,1749616243440,-460.0,0.00023013,4]
[365353312,1749616243451,-908.46,0.00023013,4]
[365353313,1749616243460,-799.55,0.00023013,4]
[365353314,1749616243471,-460.0,0.00023013,4]
[365353315,1749616243482,-725.66,0.00023013,4]
[365353316,1749616243492,-460.0,0.00023013,4]
[365353317,1749616243503,-1970.93,0.00023013,4]
[365353318,1749616243512,-735.29,0.00023013,4]
[365353319,1749616243522,-858.24,0.00023013,4]
[365353320,1749616243532,-460.0,0.00023013,4]
[365353321,1749616243542,-460.0,0.00023013,4]
[365353322,1749616243553,-1474.4,0.00023013,4]
[365353323,1749616243563,-2285.07,0.00023013,4]
[365353324,1749616243572,-571.35,0.00023013,4]
[365353325,1749616243583,-2083.99,0.00023013,4]
[365353326,1749616243593,-1126.58,0.00023013,4]
[365353327,1749616243602,-460.0,0.00023013,4]
[365353328,1749616243612,-605.71,0.00023013,4]
[365353329,1749616243622,-460.0,0.00023013,4]
[365353330,1749616243632,-1698.14,0.00023013,4]
[365353331,1749616243642,-1039.49,0.00023013,4]
[365353332,1749616243651,-2538.15,0.00023013,4]
[365353333,1749616243661,-1237.68,0.00023013,4]
[365353334,1749616243671,-460.0,0.00023013,4]
[365353335,1749616243681,-917.54,0.00023013,4]